[Event "17th Paracin Open 2024"]
[Site "Paracin"]
[Date "2024.07.04"]
[Round "2.1"]
[White "Khripachenko, Alexander"]
[Black "Safarli, Eltaj"]
[Result "1/2-1/2"]
[ECO "B72"]
[WhiteElo "2346"]
[BlackElo "2595"]
[Annotator "TA"]
[PlyCount "56"]
[EventDate "2024.07.02"]
[EventType "swiss"]
[EventCountry "SRB"]
[SourceTitle "playchess.com"]
[Source "ChessBase"]
[SourceQuality "1"]
[TimeControl "5400+30"]

{[%evp 10,56,52,40,51,60,70,40,46,38,102,92,89,90,90,76,116,104,119,112,196,207,191,214,176,156,172,160,145,145,164,144,143,102,99,105,63,8,50,73,75,0,30,0,0,0,0,0,6]} 1. e4 {[%emt 0:00:02]} c5 {[%emt 0:00:58]} 2. Nf3 {[%emt 0:00:06]} d6 {[%emt 0:00:03]} 3. d4 {[%emt 0:00:06]} cxd4 {[%emt 0:00:09]} 4. Nxd4 {[%emt 0:00:07]} Nf6 {[%emt 0:00:06]} 5. Nc3 {[%emt 0:00:06]} g6 {[%emt 0:00:37]} 6. Be3 {[%emt 0:00:51]} Nc6 {[%emt 0:00:19]} 7. f3 {[%emt 0:00:57] Inhibits Ng4.} h5 {[%emt 0:00:07]} 8. Bc4 {[%emt 0:03:43]} Bd7 {[%emt 0:00:23] White is slightly better.} 9. Qe2 {[%emt 0:05:18]} Bh6 {[%emt 0:06:49]} (9... Bg7 $14) 10. Nxc6 $16 {[%emt 0:09:36]} Bxc6 {[%emt 0:00:41]} 11. Bxh6 {[%emt 0:00:14]} Rxh6 {[%emt 0:00:05]} 12. O-O-O {[%emt 0:02:47]} Qa5 {[%emt 0:01:47]} 13. f4 {[%emt 0:04:10][%cal Bf3f4,Bf4e5][%mdl 32]} Nd7 {[%emt 0:03:58]} 14. Rhe1 {[%emt 0:01:32]} h4 {[%emt 0:16:42]} (14... Rh7 $16 15. e5 dxe5) 15. e5 $18 {[%emt 0:17:26]} dxe5 {[%emt 0:00:57]} 16. fxe5 {[%emt 0:00:10]} e6 {[%emt 0:00:19]} 17. Bb5 {[%emt 0:09:19]} Rh5 {[%emt 0:12:28]} 18. Bxc6 {[%emt 0:06:35]} bxc6 {[%emt 0:00:05] [#]} 19. Qf3 $1 {[%emt 0:05:08][%cal Od1d7] Threatens to win with Rxd7!} Rd8 {[%emt 0:01:00]} 20. Qxc6 {[%emt 0:13:25] aiming for Ne4.} Rxe5 {[%emt 0:00:23]} 21. Rxe5 {[%emt 0:04:38]} Qxe5 {[%emt 0:53:04]} 22. Ne4 {[%emt 0:02:00] White is more active.} Kf8 {[%emt 0:00:00]} 23. Kb1 {[%emt 0:01:58]} ({But not} 23. Rxd7 $6 Rxd7 24. Qxd7 Qxe4 25. Qd6+ Kg7 $15) (23. a4 $14) 23... Rb8 {[%emt 0:00:00]} 24. b3 {[%emt 0:02:08]} (24. Rxd7 $2 Qxb2#) 24... Nb6 {[%emt 0:00:00][%cal Ob6d5] [#]} 25. Nc5 {[%emt 0:01:50]} ({White should play} 25. Nf6 $1 $16 {[%cal Oc6b6] And now Qxb6! would win.} Qxh2 (25... Qxf6 26. Qd6+ Kg7 27. Qxb8 $14) 26. Qc5+ Kg7 27. Qg5) 25... Qxh2 {[%emt 0:00:00]} 26. Nxe6+ {[%emt 0:04:56]} fxe6 {[%emt 0:00:00] The position is equal.} 27. Rf1+ {[%emt 0:00:54]} Kg7 $1 {[%emt 0:00:00] Strongly threatening ...Qe5.} 28. Qc3+ {[%emt 0:00:04]} Kh6 {[%emt 0:00:00] Black escapes into a draw.   Weighted Error Value: White=0.13 (very precise) /Black=0.16 (very precise) .  Mistake:       	White=2     	Black=2      Inaccurate:     	White=2     	Black=3      OK:         	White=12    	Black=7      Best:        	White=1     	Black=2      Strong:       	---       	Black=1} 1/2-1/2

[Event "17th Paracin Open 2024"]
[Site "Paracin"]
[Date "2024.07.04"]
[Round "2.2"]
[White "Fier, Alexandr"]
[Black "Palczert, Matyas"]
[Result "1-0"]
[ECO "C77"]
[WhiteElo "2602"]
[BlackElo "2346"]
[Annotator "TA"]
[PlyCount "57"]
[EventDate "2024.07.02"]
[EventType "swiss"]
[EventCountry "SRB"]
[SourceTitle "playchess.com"]
[Source "ChessBase"]
[SourceQuality "1"]
[TimeControl "5400+30"]

{[%evp 11,57,4,18,0,0,5,45,38,60,64,85,88,144,135,161,120,166,158,134,80,91,83,71,52,40,47,202,210,400,385,704,425,452,426,1431,1446,2526,2524,2299,2269,2113,29975,29973,29974,5477,5381,3601,3072]} 1. e4 {[%emt 0:00:03]} e5 {[%emt 0:00:22]} 2. Nf3 {[%emt 0:00:06]} Nc6 {[%emt 0:00:06]} 3. Bb5 {[%emt 0:00:04][%cal Bf1b5,Bb5a4,Ba4b3,Bb3d5][%mdl 32]} a6 {[%emt 0:00:10]} 4. Ba4 {[%emt 0:00:03]} Nf6 {[%emt 0:00:12]} 5. Nc3 {[%emt 0:00:04]} b5 {[%emt 0:07:17]} 6. Bb3 {[%emt 0:00:04]} Bc5 {[%emt 0:00:18]} 7. a4 {[%emt 0:01:47]} b4 {[%emt 0:06:42]} 8. Nd5 {[%emt 0:00:10]} Nxd5 {[%emt 0:05:03]} (8... Nxe4 9. d4 Bxd4 (9... exd4 10. O-O $18) (9... Nxd4 $2 10. Nxd4 O-O 11. Nf5 $18) 10. Nxd4 Nxd4 11. Qg4 $16) 9. Bxd5 {[%emt 0:00:32] White is slightly better.} Qe7 {[%emt 0:03:58]} 10. O-O {[%emt 0:03:22]} Bb7 {[%emt 0:02:17]} 11. c3 {[%emt 0:00:13][%cal Bc2c3,Bc3d4,Bd4d5,Bd5d6][%mdl 32]} O-O {[%emt 0:10:40]} (11... Na5 $142) 12. d4 $16 {[%emt 0:01:21]} exd4 {[%emt 0:00:20]} 13. cxd4 {[%emt 0:01:04]} Ba7 {[%emt 0:00:40]} (13... Bb6 $16) 14. Bg5 $18 {[%emt 0:02:16]} Qd6 {[%emt 0:05:50]} 15. a5 {[%emt 0:02:27]} ({Better is} 15. Nh4 {Threatens to win with Nf5.} Kh8 (15... Bxd4 $2 16. Nf5 $18) 16. Nf5) 15... Nd8 $16 {[%emt 0:05:08]} 16. Bxb7 {[%emt 0:05:38]} (16. Nh4 {seems wilder.} Bxd5 17. Nf5 Qe6 18. Ne7+) 16... Nxb7 {[%emt 0:00:08]} 17. Qd2 {[%emt 0:00:04]} c5 {[%emt 0:03:32][%cal Bc7c5,Bc5c4][%mdl 32]} 18. d5 $36 {[%emt 0:00:32][%mdl 2048] White is more active.} Qc7 $2 {[%emt 0:04:06] [#] This move loses the game for Black.} (18... f6 $14 19. Bf4 Qe7) 19. e5 $18 {[%emt 0:04:53][%cal Og5f6]} Kh8 $2 {[%emt 0:06:15]} (19... c4 {was worth a try.} 20. Be7 (20. Qxb4 d6 $18) 20... Nc5 21. Bxf8 (21. Qxb4 Nd3 $14) 21... Rxf8) 20. Be7 {[%emt 0:00:34]} Nxa5 $2 {[%emt 0:02:03]} (20... Rae8 21. Bxf8 Rxf8) 21. Qd3 {[%emt 0:05:44]} c4 {[%emt 0:04:00]} 22. Qf5 {[%emt 0:00:05]} Bc5 {[%emt 0:01:36]} (22... h6 $142 23. Bxb4 Bb6 24. Bxf8 Rxf8) 23. d6 {[%emt 0:00:39][%cal Of3g5] [#] White threatens Ng5! and mate.} Qb6 {[%emt 0:00:14]} 24. Ng5 {[%emt 0:00:58][%csl Gg5][%cal Rf5h7]} g6 {[%emt 0:00:07]} 25. Nxf7+ {[%emt 0:00:38]} Kg8 {[%emt 0:00:15][%cal Bh8g8,Bg8g7,Bg7h6][%mdl 32]} 26. Nh6+ {[%emt 0:00:39]} (26. Qxd7 $2 {too greedy.} Rxf7 27. e6 Rg7 28. Rxa5 Qxa5 $19) 26... Kg7 {[%emt 0:00:06]} 27. Bf6+ {[%emt 0:00:04]} Rxf6 {[%emt 0:00:10]} 28. exf6+ {[%emt 0:00:21]} (28. Qxf6+ Kxh6 29. Qh4+ Kg7 $16) 28... Kxh6 {[%emt 0:00:11]} 29. Qe4 {[%emt 0:00:29] Weighted Error Value: White=0.25 (precise) /Black=0.49.  Mistake:       	White=1     	Black=6      Inaccurate:     	White=1     	Black=2      OK:         	White=9     	Black=3} 1-0

[Event "17th Paracin Open 2024"]
[Site "Paracin"]
[Date "2024.07.04"]
[Round "2.3"]
[White "Filip, Andrei"]
[Black "Sasikiran, Krishnan"]
[Result "1/2-1/2"]
[ECO "B96"]
[WhiteElo "2280"]
[BlackElo "2581"]
[Annotator "TA"]
[PlyCount "61"]
[EventDate "2024.07.02"]
[EventType "swiss"]
[EventCountry "SRB"]
[SourceTitle "playchess.com"]
[Source "ChessBase"]
[SourceQuality "1"]
[TimeControl "5400+30"]

{[%evp 17,61,13,42,16,25,11,37,32,50,35,64,68,66,67,36,52,105,89,68,127,101,75,70,118,97,116,84,97,108,7,28,29,25,27,23,23,16,31,34,-9,108,-56,20,-8,146,-28]} 1. e4 {[%emt 0:00:05]} c5 {[%emt 0:00:17]} 2. Nf3 {[%emt 0:00:09]} d6 {[%emt 0:00:08]} 3. d4 {[%emt 0:00:06]} cxd4 {[%emt 0:00:08]} 4. Nxd4 {[%emt 0:00:05]} Nf6 {[%emt 0:00:10]} 5. Nc3 {[%emt 0:00:06]} a6 {[%emt 0:00:09]} 6. Bg5 {[%emt 0:00:22]} Nbd7 {[%emt 0:00:20]} 7. Qe2 {[%emt 0:01:23]} Qc7 {[%emt 0:01:19]} 8. O-O-O {[%emt 0:03:29]} e6 {[%emt 0:01:16]} 9. f4 {[%emt 0:01:02]} b5 {[%emt 0:01:33]} 10. a3 {[%emt 0:01:12]} Be7 {[%emt 0:02:55]} 11. g4 {[%emt 0:09:02]} Rb8 {[%emt 0:10:05]} 12. Bg2 {[%emt 0:04:55] White is slightly better.} h6 {[%emt 0:03:50]} 13. Bh4 {[%emt 0:20:35][%cal Oe4e5]} g5 {[%emt 0:12:05][%cal Bg7g5,Bg5h4,Bh4h3][%mdl 32]} 14. e5 {[%emt 0:02:05]} dxe5 {[%emt 0:08:09]} 15. fxe5 {[%emt 0:00:20]} gxh4 {[%emt 0:03:07]} (15... Nxe5 $2 16. Bg3 Nfxg4 17. Nc6 $18) 16. exf6 {[%emt 0:00:51]} Nxf6 {[%emt 0:01:57]} ({Black should play} 16... Bxf6 $14 17. Nxe6 Qe5 18. Qxe5 (18. Nc7+ Kf8 $15) 18... Nxe5 (18... Bxe5 19. Nd4 $16)) 17. Nc6 $16 {[%emt 0:04:22][%cal Oc6e7]} h3 {[%emt 0:04:58]} 18. Bf3 {[%emt 0:02:22][%cal Oh1f1] White is much more active.} Bb7 {[%emt 0:07:53]} 19. Nxb8 {[%emt 0:28:35]} Qf4+ {[%emt 0:09:44]} 20. Kb1 {[%emt 0:00:11]} Bxf3 {[%emt 0:06:38] A strong pair of Bishops.} (20... Qxb8 $2 21. Rd3 $18) 21. Rdf1 $1 {[%emt 0:00:09] Some like it hot} Bxe2 {[%emt 0:01:34]} (21... Qxb8 $2 22. Rxf3 (22. Qxf3 b4 $18) 22... Nxg4 23. Re1 $18 (23. Rxh3 Ne5 $18)) 22. Rxf4 {[%emt 0:00:05]} Bxg4 {[%emt 0:01:51]} 23. Nc6 {[%emt 0:07:27]} (23. Nxa6 $16 {Strongly threatening Nc7+.} e5 24. Rff1) 23... h5 {[%emt 0:04:53]} 24. Rhf1 {[%emt 0:02:33][%cal Oc6e7] And now Nxe7! would win.} Rh6 {[%emt 0:02:13]} 25. Nxe7 {[%emt 0:02:18]} Kxe7 {[%emt 0:00:05]} 26. a4 {[%emt 0:00:24]} Rg6 {[%emt 0:05:33]} (26... e5 $2 27. Rxf6 Rxf6 28. Nd5+ Ke6 29. Nxf6 $18) 27. axb5 {[%emt 0:01:23]} axb5 {[%emt 0:00:04][%cal Ob5b4]} 28. Re1 {[%emt 0:01:25]} (28. Nxb5 $2 Be2 29. Rxf6 Rxf6 30. Rxf6 Kxf6 $19) 28... Rg5 {[%emt 0:03:21] [#]} (28... b4 $1 $11 29. Rxb4 Bf5) 29. Ref1 $2 {[%emt 0:01:10]} (29. Rxf6 $1 $16 Kxf6 30. Ne4+ Kg6 31. Nxg5 Kxg5 32. b3 (32. Re5+ $2 Kf4 $19)) 29... Rg6 {[%emt 0:03:53]} (29... Bf5 $15 30. Nxb5 Ne4 (30... Ng4 31. Nd4 $17)) 30. Re1 {[%emt 0:01:11][%mdl 1024] White has compensation.} (30. Nxb5 $2 {too greedy.} Be2 31. Rxf6 Rxf6 32. Rxf6 Kxf6 $19) 30... Rg5 $2 {[%emt 0:00:17] [#]} (30... b4 $11 31. Rxb4 Bf5) 31. Ref1 $2 {[%emt 0:02:25] Weighted Error Value: White=0.21 (precise) /Black=0.30.  Mistake:       	White=3     	Black=4      Inaccurate:     	White=2     	Black=2      OK:         	White=12    	Black=9      Best:        	White=2     	Black=2      Strong:       	White=1     	---} (31. Rxf6 $1 $16 Kxf6 32. Ne4+ Kg6 33. Nxg5 Kxg5 34. b3 (34. Re5+ $2 Kf4 $19)) 1/2-1/2

[Event "17th Paracin Open 2024"]
[Site "Paracin"]
[Date "2024.07.04"]
[Round "2.4"]
[White "Albers, Sasa"]
[Black "Antal, Gergely"]
[Result "1/2-1/2"]
[ECO "B11"]
[WhiteElo "2309"]
[BlackElo "2580"]
[Annotator "TA"]
[PlyCount "62"]
[EventDate "2024.07.02"]
[EventType "swiss"]
[EventCountry "SRB"]
[SourceTitle "playchess.com"]
[Source "ChessBase"]
[SourceQuality "1"]
[TimeControl "5400+30"]

{[%evp 9,62,35,45,29,36,32,22,29,28,29,26,25,19,6,14,1,0,7,7,0,6,-7,46,53,41,45,60,15,19,7,11,25,28,23,45,11,38,6,31,28,54,17,20,26,31,0,0,0,0,0,0,0,0,0,0]} 1. e4 {[%emt 0:00:46]} c6 {[%emt 0:00:16]} 2. Nf3 {[%emt 0:01:00]} d5 {[%emt 0:00:06]} 3. Nc3 {[%emt 0:00:07]} dxe4 {[%emt 0:00:46]} 4. Nxe4 {[%emt 0:00:06]} Nf6 {[%emt 0:00:11]} 5. Qe2 {[%emt 0:00:09]} Na6 {[%emt 0:00:17]} 6. d3 {[%emt 0:02:57]} Nxe4 {[%emt 0:00:33]} 7. dxe4 {[%emt 0:00:24]} e5 {[%emt 0:00:58] Inhibits Bf4.} 8. Qd2 {[%emt 0:00:25]} Bb4 {[%emt 0:00:10]} 9. c3 $1 {[%emt 0:00:20]} Bd6 {[%emt 0:00:05]} 10. Bxa6 {[%emt 0:01:37]} bxa6 {[%emt 0:00:06]} 11. Qg5 {[%emt 0:16:12]} Qxg5 {[%emt 0:14:46]} 12. Bxg5 {[%emt 0:00:06]} f6 {[%emt 0:01:25]} 13. Be3 {[%emt 0:00:15]} Be6 {[%emt 0:01:02]} 14. b3 {[%emt 0:04:33]} a5 {[%emt 0:02:27]} 15. Nd2 {[%emt 0:02:31]} g5 {[%emt 0:09:01]} (15... Bc7 $11) 16. Nc4 $14 {[%emt 0:13:26]} Bxc4 {[%emt 0:01:23]} 17. bxc4 {[%emt 0:00:07]} Rb8 {[%emt 0:02:42] Inhibits Rb1.} 18. O-O {[%emt 0:14:51][%cal Oa1b1]} Kd7 {[%emt 0:33:00]} 19. Rfb1 {[%emt 0:09:05] Against Rb2} a4 {[%emt 0:03:53]} 20. Kf1 {[%emt 0:18:35]} (20. Bxa7 Rxb1+ 21. Rxb1 c5 $11) 20... a5 {[%emt 0:02:21]} 21. Ke2 {[%emt 0:01:14]} h5 {[%emt 0:04:14]} 22. Kd3 {[%emt 0:01:57]} g4 {[%emt 0:03:14]} 23. Kc2 {[%emt 0:00:32]} h4 {[%emt 0:05:14]} (23... Ke6 $5 {[%cal Rf6f5]}) 24. Rxb8 {[%emt 0:01:31]} Bxb8 {[%emt 0:00:02][%mdl 4096] Endgame. KRB-KRB} 25. Rb1 {[%emt 0:01:38] With the idea Rb7+.} Bc7 {[%emt 0:00:57]} 26. Rb7 {[%emt 0:02:57] [#] Bb6 would now be deadly.} Kc8 {[%emt 0:00:24]} 27. Ra7 {[%emt 0:00:46]} Kb8 {[%emt 0:04:30] Repels Ra8+. The position is equal.} 28. Ra6 {[%emt 0:00:24]} Kb7 {[%emt 0:00:45]} 29. Ra7+ {[%emt 0:00:06]} Kb8 {[%emt 0:00:19]} 30. Ra6 {[%emt 0:00:04]} Kb7 {[%emt 0:01:48]} 31. Ra7+ {[%emt 0:00:05]} Kb8 {[%emt 0:00:08] Weighted Error Value: White=0.12 (very precise) /Black=0.06 (flawless) .  Mistake:       	---       	Black=1      Inaccurate:     	White=5     	Black=1      OK:         	White=7     	Black=11     Best:        	---       	Black=3      Strong:       	White=1     	---} 1/2-1/2

[Event "17th Paracin Open 2024"]
[Site "Paracin"]
[Date "2024.07.04"]
[Round "2.5"]
[White "Narayanan, Srinath"]
[Black "Atakisi, Umut"]
[Result "1-0"]
[ECO "B45"]
[WhiteElo "2533"]
[BlackElo "2335"]
[Annotator "TA"]
[PlyCount "99"]
[EventDate "2024.07.02"]
[EventType "swiss"]
[EventCountry "SRB"]
[SourceTitle "playchess.com"]
[Source "ChessBase"]
[SourceQuality "1"]
[TimeControl "5400+30"]

{[%evp 12,99,0,0,7,0,25,0,8,0,8,0,22,0,0,0,0,0,0,0,0,0,-1,-8,-15,-11,7,0,7,0,0,-4,-3,-2,0,0,0,0,6,9,3,-21,-33,-17,-10,-113,-15,-11,0,-8,-13,0,0,-16,-12,-18,-15,-19,-20,-35,0,-13,-10,-20,-28,-18,-18,-22,-18,-36,-14,-19,0,0,22,14,10,10,11,11,11,11,10,11,1015,455,4134,639,5106,2333]} 1. e4 {[%emt 0:00:18]} c5 {[%emt 0:05:00]} 2. Nf3 {[%emt 0:00:06]} e6 {[%emt 0:00:04]} 3. d4 {[%emt 0:00:05]} cxd4 {[%emt 0:00:04]} 4. Nxd4 {[%emt 0:00:05]} Nf6 {[%emt 0:00:06]} 5. Nc3 {[%emt 0:00:04]} Nc6 {[%emt 0:00:07]} 6. a3 {[%emt 0:00:49]} Be7 {[%emt 0:00:06]} 7. Be2 {[%emt 0:02:29]} O-O {[%emt 0:02:49]} 8. Be3 {[%emt 0:00:53]} d6 {[%emt 0:01:55]} 9. Qd3 {[%emt 0:06:04]} Bd7 {[%emt 0:19:01] The position is equal.} 10. f4 {[%emt 0:01:22]} e5 {[%emt 0:04:06]} 11. Nxc6 {[%emt 0:00:27]} bxc6 {[%emt 0:00:42]} 12. O-O {[%emt 0:00:12]} exf4 {[%emt 0:12:41]} 13. Bxf4 {[%emt 0:00:24][%cal Od3g3,Be3f4,Bf4e5,Be5d4,Bd4c3][%mdl 32]} Bg4 {[%emt 0:01:12]} 14. Kh1 {[%emt 0:00:21]} Bxe2 {[%emt 0:06:48]} 15. Qxe2 {[%emt 0:00:16]} Qb6 {[%emt 0:10:30]} 16. e5 {[%emt 0:07:34]} dxe5 {[%emt 0:00:33]} (16... Qxb2 $2 17. exf6 Bxf6 18. Ne4 $18) 17. Bxe5 {[%emt 0:00:06]} Rae8 {[%emt 0:09:22]} (17... Qxb2 $2 18. Rfb1 $18) 18. Qd3 {[%emt 0:07:09] Inhibits Bd6.} Bd8 {[%emt 0:04:16]} (18... Qxb2 $2 19. Rfb1 $18) 19. Bd4 {[%emt 0:06:33]} Qc7 {[%emt 0:03:58]} (19... Qxb2 $2 {perishes.} 20. Rfb1 $18 (20. Bxa7 Qb7 $11) (20. Bxa7 Qb7 $11)) 20. Qf3 {[%emt 0:05:04]} Re6 {[%emt 0:00:33]} 21. Ne2 {[%emt 0:02:22]} c5 {[%emt 0:03:05]} 22. Bc3 {[%emt 0:04:25]} Qc6 {[%emt 0:00:05] [#] Hoping for ...Qxf3.} 23. Nf4 {[%emt 0:00:18]} Qxf3 {[%emt 0:01:06]} 24. Rxf3 {[%emt 0:00:02]} Re4 {[%emt 0:02:05]} 25. Rd1 {[%emt 0:01:00]} Rfe8 {[%emt 0:01:17]} 26. Bxf6 {[%emt 0:06:05]} Bxf6 {[%emt 0:01:34]} 27. b3 {[%emt 0:00:05]} Bg5 {[%emt 0:04:32]} 28. Nd5 {[%emt 0:05:03]} (28. g3 $11 {remains equal.}) 28... c4 {[%emt 0:01:18]} (28... Re1+ $17 29. Rf1 Rxf1+ 30. Rxf1 Re2) 29. g3 $11 {[%emt 0:01:29]} Re1+ {[%emt 0:01:55]} 30. Rxe1 {[%emt 0:00:47]} Rxe1+ {[%emt 0:00:02][%mdl 4096] Endgame. KRB-KRN} 31. Kg2 {[%emt 0:00:01]} cxb3 {[%emt 0:00:48]} 32. cxb3 {[%emt 0:00:22]} Rd1 {[%emt 0:00:53]} 33. Nc3 {[%emt 0:00:50]} Rd2+ {[%emt 0:00:04]} 34. Rf2 {[%emt 0:02:07]} Rd3 {[%emt 0:00:06]} 35. Rf3 {[%emt 0:00:02]} Rd2+ {[%emt 0:00:03]} (35... Be3 $5 36. Nd5 Rd2+ 37. Kf1 Bc5 $17 (37... Rxd5 38. Rxe3 g5 39. Ke2 $14)) 36. Kh1 {[%emt 0:00:32]} g6 {[%emt 0:00:49]} 37. Ne4 {[%emt 0:01:00][%cal Oe4d2]} Rd1+ {[%emt 0:00:04]} 38. Kg2 {[%emt 0:00:03]} Be7 {[%emt 0:00:06]} 39. b4 {[%emt 0:00:05]} f5 {[%emt 0:00:36]} 40. Nf2 {[%emt 0:00:24]} Rd5 {[%emt 0:01:08]} 41. Rd3 {[%emt 0:00:08]} Rxd3 {[%emt 0:00:25]} 42. Nxd3 {[%emt 0:00:01] KB-KN} Kf7 {[%emt 0:00:10]} 43. Ne5+ $1 {[%emt 0:00:30]} Ke6 {[%emt 0:00:51]} 44. Nc6 {[%emt 0:00:03]} Bf8 {[%emt 0:01:54]} 45. Nxa7 {[%emt 0:03:10]} Kd5 {[%emt 0:00:01]} 46. Kf3 {[%emt 0:00:07]} Kc4 {[%emt 0:00:07]} 47. Nc6 {[%emt 0:00:30]} Kb3 $2 {[%emt 0:00:51][%mdl 8192]} (47... Kb5 $11 48. Nd4+ Ka4) 48. b5 $18 {[%emt 0:02:36] White is clearly winning.} Bc5 {[%emt 0:00:07] Dodges b6} 49. Ne5 {[%emt 0:00:03]} (49. Nb8 $142 Bxa3 50. b6) 49... Ka4 {[%emt 0:04:32] [#]} 50. Nd7 $1 {[%emt 0:00:13] Weighted Error Value: White=0.26 (precise) /Black=0.10 (very precise) .  Loses game:     	---       	Black=1      Mistake:       	White=1     	Black=1      Inaccurate:     	---       	Black=2      OK:         	White=13    	Black=23     Best:        	White=3     	---        Strong:       	White=1     	---} 1-0

[Event "17th Paracin Open 2024"]
[Site "Paracin"]
[Date "2024.07.04"]
[Round "2.6"]
[White "Novikov, Stanislav"]
[Black "Bashirli, Nail"]
[Result "0-1"]
[ECO "B80"]
[WhiteElo "2528"]
[BlackElo "2327"]
[Annotator "TA"]
[PlyCount "88"]
[EventDate "2024.07.02"]
[EventType "swiss"]
[EventCountry "SRB"]
[SourceTitle "playchess.com"]
[Source "ChessBase"]
[SourceQuality "1"]
[TimeControl "5400+30"]

{[%evp 29,88,45,60,47,35,32,46,21,23,13,22,42,36,26,111,75,85,99,123,29,35,0,18,-89,-91,-90,6,-20,-23,-87,-88,-83,-72,-70,-66,-134,-150,-125,-91,-79,-96,-100,-98,-326,-302,-435,-419,-589,-529,-392,-24,-702,-711,-675,-249,-202,-202,-413,-268,-747,-718]} 1. e4 {[%emt 0:00:03]} c5 {[%emt 0:00:24]} 2. Nf3 {[%emt 0:00:15]} d6 {[%emt 0:00:09]} 3. d4 {[%emt 0:01:07]} cxd4 {[%emt 0:00:16]} 4. Nxd4 {[%emt 0:00:06]} Nf6 {[%emt 0:00:32]} 5. Nc3 {[%emt 0:00:04]} e6 {[%emt 0:01:07]} 6. Be3 {[%emt 0:01:19]} Nc6 {[%emt 0:04:50]} 7. f3 {[%emt 0:00:59]} a6 {[%emt 0:01:18]} 8. Qd2 {[%emt 0:00:25]} Be7 {[%emt 0:08:46]} 9. O-O-O {[%emt 0:02:11]} Nxd4 {[%emt 0:10:03]} 10. Bxd4 {[%emt 0:00:59]} O-O {[%emt 0:00:47]} 11. g4 {[%emt 0:01:06]} b5 {[%emt 0:00:58]} 12. Kb1 {[%emt 0:19:19]} b4 {[%emt 0:14:02] B80: Sicilian Scheveningen: 6 g3 and 6 Be3, including English Attack.} 13. Ne2 {[%emt 0:06:39]} e5 {[%emt 0:13:43]} 14. Be3 {[%emt 0:03:59]} Be6 {[%emt 0:00:41]} 15. g5 {[%emt 0:15:34]} Nd7 {[%emt 0:06:26]} 16. f4 {[%emt 0:09:41]} Nc5 {[%emt 0:07:22]} 17. Bg2 {[%emt 0:14:02]} (17. Qxb4 Rb8 18. Qe1 Qc7 $15 (18... Nxe4 19. Bg2 $15)) 17... Qa5 {[%emt 0:03:42]} 18. Nc1 {[%emt 0:00:55]} exf4 {[%emt 0:03:27]} 19. Bxf4 {[%emt 0:00:03]} Rac8 {[%emt 0:05:34]} 20. h4 {[%emt 0:02:06]} Rfd8 $146 {[%emt 0:03:24]} ({Predecessor:} 20... f5 21. exf5 Bxf5 22. Rde1 Ne6 23. Be4 Nxf4 24. Qxf4 Rc4 25. Nd3 Qb5 26. g6 Bxe4 27. gxh7+ Bxh7 28. Qe3 Bf6 29. h5 Rxc2 {0-1 Waitzkin,J (2320)-Kraai,J (2290) New York op 1991}) 21. h5 {[%emt 0:10:02]} Bg4 {[%emt 0:03:51]} (21... Qb5 $1 $11) 22. Rdf1 {[%emt 0:03:26]} Ne6 {[%emt 0:00:23]} 23. g6 $1 {[%emt 0:03:23]} Bxh5 {[%emt 0:02:37]} 24. Nb3 {[%emt 0:00:55]} ({White should try} 24. gxf7+ $1 $16 Bxf7 25. Bh3) 24... Qb5 $11 {[%emt 0:00:16]} 25. gxh7+ {[%emt 0:02:01]} Kh8 $1 {[%emt 0:00:24]} 26. Be3 {[%emt 0:01:53]} (26. Bh3 $1 $11 {remains equal.} Nxf4 27. Bxc8 (27. Rxf4 Bg5 $15) (27. Nd4 Qc5 $11) 27... Rxc8 28. Qxf4 (28. Nd4 Qc5 $11)) 26... Bg6 $1 $17 {[%emt 0:01:51]} (26... Kxh7 $2 27. Rf5 $18 (27. Rxf7 Bf6 $18)) 27. Nd4 {[%emt 0:00:27]} Qc4 {[%emt 0:00:41]} ({Black should play} 27... Nxd4 $17 28. Bxd4 Bg5) 28. Nxe6 {[%emt 0:00:45]} fxe6 {[%emt 0:00:34]} 29. Bd4 {[%emt 0:00:39]} (29. Rc1 $11 {keeps the balance.}) 29... e5 $1 $17 {[%emt 0:01:51]} 30. Bb6 {[%emt 0:00:07]} Rf8 {[%emt 0:00:15]} 31. Rxf8+ {[%emt 0:00:39]} Rxf8 {[%emt 0:00:24]} 32. b3 {[%emt 0:00:43]} (32. Qd3 $15 Qc6 33. Be3) 32... Qc6 $1 $17 {[%emt 0:00:36]} 33. Ba5 {[%emt 0:00:32]} (33. Qxb4 $2 Rb8 (33... Bxh7 34. Bf1 $16) 34. Bf3 Qxb6 $19 (34... Rxb6 $2 35. Qd2 $19)) 33... Bxe4 {[%emt 0:01:52]} (33... Bxh7 34. Bxb4 (34. Qxb4 Rf2 $11) 34... Kg8 35. Qe3 $14) 34. Bxe4 {[%emt 0:00:02]} Qxe4 {[%emt 0:04:24]} 35. Re1 {[%emt 0:00:04]} Qf4 {[%emt 0:00:00]} (35... Qxh7 $6 36. Bxb4 Qh4 37. a3 $14) 36. Qd3 $2 {[%emt 0:00:38] [#]} (36. Qd5 $17 {was called for.}) 36... e4 $1 $19 {[%emt 0:00:00]} 37. Qxa6 {[%emt 0:01:20]} (37. Qe2 $142) 37... Qd2 $19 {[%emt 0:00:00]} (37... Kxh7 38. Bxb4 Rf7 39. a4 $16) 38. Rc1 {[%emt 0:00:30]} (38. Qe2 {was forced.} Qc3 (38... Qxe2 $2 39. Rxe2 Rf1+ 40. Kb2 $19) 39. Bxb4 (39. Qxe4 $2 Bf6 $19) 39... Qxb4 40. Qxe4 Qxe4 41. Rxe4 Rf1+ 42. Kb2 Bf6+ 43. Ka3) 38... Bg5 {[%emt 0:00:54]} (38... Kxh7 $2 39. Qb7 Bg5 40. Qxe4+ (40. Bxb4 $2 Qxc1#) 40... Kg8 41. Rh1 $18 (41. Bxb4 $2 Qxc1#)) 39. Rg1 {[%emt 0:00:30]} Qe3 $2 {[%emt 0:01:01]} (39... Kxh7 40. Qc4 d5 41. Qxb4 Qxb4 42. Bxb4 $11) (39... Bf6 $19 {[%cal Od2c3] ( -> ...Qc3!)} 40. Qc4 Qc3 (40... Kxh7 $2 41. Rh1+ Kg6 42. Qxe4+ Kf7 43. Bxb4 $18) 41. Qxc3 Bxc3) 40. Rd1 $2 {[%emt 0:00:29][%mdl 8192]} (40. Bb6 $11 Qd2 41. Qc4) 40... Qc3 $19 {[%emt 0:00:17]} 41. Qc4 {[%emt 0:00:30]} Qxc4 $2 {[%emt 0:00:28]} (41... Kxh7 $2 42. Qxe4+ g6 43. Bxb4 $18) (41... Bf6 {[%csl Gf6][%cal Rc3b2]} 42. Qxc3 Bxc3 43. Bxb4 Bxb4) 42. bxc4 $19 {[%emt 0:00:01] [#]} e3 $1 {[%emt 0:00:37]} (42... Kxh7 43. c3 $17 (43. Bxb4 $2 e3 $19)) 43. Bxb4 $2 {[%emt 0:00:43]} (43. Re1 {was the only defense.}) 43... Bh4 {[%emt 0:00:15]} ({Not} 43... Kxh7 44. Bxd6 Rf6 45. Bb4 $17) 44. Rd3 $2 {[%emt 0:00:48]} (44. Rh1 Bg3 45. a3) 44... Rb8 {[%emt 0:00:47]} (44... Kxh7 45. Rxe3 (45. Bxd6 $2 {perishes.} e2 $19) 45... Rb8 46. c3 $16) 0-1